bitfinex/quotes_SOLUSD_20250917
["timestamp","ask_amount","ask_price","bid_price","bid_amount"]
[1758108039117,0.03,234.45,234.44,17.65358944]
[1758108040413,0.03,234.45,234.44,18.37358944]
[1758108042538,0.03,234.45,234.44,17.65358944]
[1758108043128,0.03,234.45,234.44,18.37358944]
[1758108043640,0.03,234.45,234.44,17.65358944]
[1758108044019,0.03,234.45,234.44,18.37358944]
[1758108045513,0.03,234.45,234.44,17.65358944]
[1758108047930,0.03,234.45,234.44,16.9087926]
[1758108053532,0.03,234.47,234.46,41.20088713]
[1758108053941,0.03,234.48,234.47,13.87991715]
[1758108054251,0.03,234.48,234.47,15.91088713]
[1758108055028,0.03,234.48,234.47,17.61850095]
[1758108055947,0.03,234.48,234.47,16.90850095]
[1758108059441,0.03,234.48,234.47,96.40850095]
[1758108059950,0.03,234.48,234.47,95.08753097]
[1758108060143,0.03,234.48,234.47,96.40850095]
[1758108062654,0.03,234.48,234.47,97.12850095]
[1758108062947,0.03,234.48,234.47,96.40850095]
[1758108063540,0.03,234.48,234.47,97.12850095]
[1758108063741,0.69,234.48,234.47,95.08753097]
[1758108063945,0.69,234.48,234.47,96.40850095]
[1758108064732,0.69,234.48,234.47,94.70088713]
[1758108064941,0.69,234.48,234.47,120.70088713]
[1758108065339,0.69,234.48,234.47,41.20088713]
[1758108066156,0.03,234.48,234.47,41.20088713]
[1758108066455,0.03,234.48,234.47,15.20088713]
[1758108066630,0.03,234.48,234.47,42.90864676]
[1758108066831,0.03,234.48,234.47,16.90864676]
[1758108069254,0.03,234.48,234.47,16.96864676]
[1758108078668,0.03,234.49,234.47,43.68864676]
[1758108078969,0.03,234.49,234.48,15.63656399]
[1758108079466,0.03,234.49,234.48,17.34410491]
[1758108079965,0.03,234.51,234.5,26.0]
[1758108080153,0.03,234.52,234.51,13.59559401]
[1758108080357,0.03,234.52,234.51,20.87044391]
[1758108080764,0.03,234.54,234.53,26.28432314]
[1758108080950,0.03,234.54,234.53,1.60529312]
[1758108081555,0.03,234.54,234.53,7.89726856]
[1758108085877,0.03,234.54,234.53,27.60529312]
[1758108085878,0.75,234.54,234.53,27.60529312]
[1758108086248,0.75,234.54,234.53,29.31254253]
[1758108087851,0.03,234.54,234.53,29.31254253]
[1758108088044,0.03,234.54,234.53,17.57813654]
[1758108088273,0.03,234.54,234.53,16.90813654]
[1758108090754,0.03,234.54,234.53,17.57813654]
[1758108091461,0.03,234.56,234.55,39.59559401]
[1758108091669,0.03,234.56,234.55,40.91656399]
[1758108092259,0.03,234.56,234.55,42.62359482]
[1758108095052,0.03,234.56,234.55,122.12359482]
[1758108095588,0.75,234.56,234.55,122.12359482]
[1758108095756,0.75,234.56,234.55,108.52800081]
[1758108095956,0.75,234.56,234.55,106.82096998]
[1758108096874,0.75,234.56,234.55,105.5]
[1758108097177,0.75,234.56,234.54,1.32096998]
[1758108097370,0.72,234.55,234.53,1.32096998]
[1758108097571,0.03,234.56,234.53,1.32096998]
[1758108097776,0.72,234.54,234.53,1.32096998]
[1758108098161,0.72,234.54,234.52,26.0]
[1758108098162,0.72,234.54,234.52,27.32096998]
[1758108098364,0.72,234.53,234.51,1.32096998]
[1758108098668,0.72,234.52,234.51,1.32096998]
[1758108098865,0.72,234.52,234.5,3.02851091]
[1758108099067,0.03,234.56,234.51,1.32096998]
[1758108099572,0.72,234.55,234.51,1.32096998]
[1758108099877,0.72,234.54,234.52,1.32096998]
[1758108100086,0.72,234.53,234.49,15.30328074]
[1758108100262,0.03,234.56,234.52,1.32096998]
[1758108100464,0.03,234.56,234.53,1.32096998]
[1758108100871,0.72,234.55,234.53,1.32096998]
[1758108101068,0.72,234.54,234.53,1.32096998]
[1758108101271,0.75,234.56,234.53,14.91656399]
[1758108101493,0.03,234.56,234.55,1.32096998]
[1758108102065,0.75,234.56,234.55,1.32096998]
[1758108104166,0.75,234.56,234.54,1.32096998]
[1758108104370,0.72,234.55,234.54,1.32096998]
[1758108106395,0.03,234.56,234.54,1.38096998]
[1758108106595,0.03,234.56,234.55,1.32096998]
[1758108106596,0.75,234.56,234.55,1.32096998]
[1758108107269,0.75,234.56,234.54,1.38096998]
[1758108107490,0.03,234.56,234.55,1.32096998]
[1758108107791,0.03,234.56,234.55,2.06337902]
[1758108108164,0.75,234.56,234.55,2.06337902]
[1758108109689,0.75,234.56,234.54,0.06]
[1758108109897,0.03,234.56,234.55,2.06337902]
[1758108110494,0.75,234.56,234.55,2.06337902]
[1758108118398,0.03,234.56,234.55,2.06337902]
[1758108118598,0.7,234.56,234.55,2.06337902]
[1758108118789,0.03,234.56,234.55,2.06337902]
[1758108121204,0.03,234.56,234.55,3.7707013]
[1758108121394,0.7,234.56,234.55,3.7707013]
[1758108121983,0.7,234.56,234.55,2.06337902]
[1758108123983,0.03,234.56,234.55,2.06337902]
[1758108124183,0.7,234.56,234.55,2.06337902]
[1758108124700,0.7,234.56,234.54,0.06]
[1758108124701,0.7,234.56,234.54,2.12337902]
[1758108124887,0.67,234.55,234.54,2.12337902]
[1758108126106,0.67,234.55,234.54,0.06]
[1758108130434,0.03,234.56,234.55,16.35897303]
[1758108130992,0.03,234.56,234.55,15.65897303]
[1758108131192,0.03,234.56,234.55,16.35897303]
[1758108132029,0.03,234.56,234.55,15.65897303]
[1758108132201,0.03,234.56,234.55,16.35897303]
[1758108132523,0.03,234.56,234.55,15.65897303]
[1758108134316,0.7,234.56,234.55,13.59559401]
[1758108134621,0.03,234.56,234.55,15.65897303]
[1758108135319,0.7,234.56,234.55,15.65897303]
[1758108136007,0.03,234.56,234.55,15.65897303]
[1758108139915,0.03,234.56,234.55,16.31897303]
[1758108140340,0.03,234.56,234.55,15.65897303]
[1758108143523,0.73,234.56,234.55,2.06337902]
[1758108143703,0.73,234.56,234.54,0.06]
[1758108145903,2.06337902,234.55,234.54,0.06]
[1758108146424,0.7,234.55,234.54,0.06]
[1758108147424,2.76337902,234.55,234.54,0.06]
[1758108150854,0.7,234.55,234.54,0.06]
[1758108151004,0.03,234.56,234.54,2.12337902]
[1758108151510,0.03,234.56,234.55,2.06337902]
[1758108151696,0.03,234.56,234.54,0.06]
[1758108151893,0.03,234.56,234.55,2.06337902]
[1758108154505,0.73,234.56,234.55,2.06337902]
[1758108154702,0.73,234.56,234.54,2.12337902]
[1758108155628,0.73,234.56,234.55,2.06337902]
[1758108156532,0.73,234.56,234.54,0.06]
[1758108156729,2.79337902,234.56,234.54,0.06]
[1758108158034,0.73,234.56,234.54,0.06]
[1758108158244,0.03,234.56,234.55,2.06337902]
[1758108162719,0.03,234.56,234.54,0.06]
[1758108162924,0.03,234.56,234.55,2.06337902]
[1758108163320,0.03,234.56,234.55,2.72337902]
[1758108163630,0.03,234.56,234.55,16.31897303]
[1758108163827,0.03,234.56,234.55,18.02629531]
[1758108167845,0.03,234.56,234.55,17.2828078]
[1758108172236,0.03,234.56,234.55,97.06713094]
[1758108174752,0.03,234.56,234.55,97.20929251]
[1758108178054,0.03,234.56,234.55,17.85145408]
[1758108178232,0.03,234.56,234.55,16.53156257]
[1758108178555,0.03,234.56,234.55,17.85145408]
[1758108180533,0.03,234.57,234.56,14.16424029]
[1758108180740,0.03,234.59,234.58,40.16424029]
[1758108181052,0.03,234.59,234.58,41.4841318]
[1758108181246,0.03,234.59,234.58,42.1941318]
[1758108181758,0.03,234.59,234.58,43.90079847]
[1758108182336,0.03,234.61,234.59,14.16424029]
[1758108182642,0.03,234.61,234.6,15.05764709]
[1758108182836,0.03,234.61,234.6,15.76764709]
[1758108183162,0.03,234.61,234.6,16.1941318]
[1758108185133,0.03,234.61,234.6,17.90058004]
[1758108185548,0.03,234.66,234.62,40.16424029]
[1758108185757,0.03,234.66,234.62,41.4841318]
[1758108186064,0.03,234.66,234.62,42.1941318]
[1758108186351,0.03,234.66,234.62,17.90050725]
[1758108186761,0.03,234.66,234.62,23.18007329]
[1758108186963,0.03,234.66,234.65,39.59559401]
[1758108187173,0.03,234.66,234.65,46.62153627]
[1758108187343,0.03,234.66,234.65,47.33153627]
[1758108187865,0.03,234.66,234.65,49.17992771]
[1758108188550,0.03,234.66,234.65,52.65407599]
[1758108189466,0.03,234.66,234.65,65.67829324]
[1758108189655,0.03,234.67,234.65,65.67829324]
[1758108189858,0.03,234.67,234.66,16.1941318]
[1758108190483,0.03,234.67,234.66,17.19014336]
[1758108190677,0.03,234.67,234.66,22.83843983]
[1758108190966,0.03,234.67,234.66,17.04798179]
[1758108192546,0.03,234.67,234.66,17.75798179]
[1758108192867,0.03,234.67,234.66,17.90014336]
[1758108193666,0.03,234.67,234.66,23.6906014]
[1758108195179,0.03,234.67,234.66,22.9806014]
[1758108195880,0.03,234.67,234.66,102.4806014]
[1758108196460,0.03,234.67,234.66,103.1906014]
[1758108196661,0.03,234.67,234.66,102.4806014]
[1758108197377,0.03,234.68,234.67,0.14216157]
[1758108197571,0.03,234.68,234.67,95.6941318]
[1758108197954,0.03,234.7,234.69,39.87991715]
[1758108198169,0.03,234.7,234.69,41.34197023]
[1758108198373,0.03,234.72,234.71,1.60421465]
[1758108198902,26.0,234.87,234.71,1.60421465]
[1758108198903,0.69,234.75,234.74,39.59559401]
[1758108199190,0.69,234.75,234.74,40.91548552]
[1758108199350,0.69,234.75,234.74,41.19980866]
[1758108199551,0.68,234.77,234.75,13.59559401]
[1758108199780,0.68,234.76,234.75,13.59559401]
[1758108200283,6.34057964,234.9,234.77,0.28432314]
[1758108200451,6.34057964,234.9,234.81,13.59559401]
[1758108200863,7.66047115,234.9,234.84,1.31989151]
[1758108201587,6.34057964,234.9,234.84,1.31989151]
[1758108201748,7.66047115,234.9,234.84,1.31989151]
[1758108201953,1.31989151,234.89,234.83,1.31989151]
[1758108202149,6.34057964,234.9,234.83,1.31989151]
[1758108202382,0.68,234.89,234.84,1.31989151]
[1758108202582,1.99989151,234.88,234.82,1.31989151]
[1758108202767,0.68,234.87,234.81,14.91548552]
[1758108202967,0.68,234.86,234.81,14.91548552]
[1758108203163,0.68,234.85,234.82,1.31989151]
[1758108203363,0.68,234.84,234.82,1.31989151]
[1758108203557,1.31989151,234.89,234.83,1.31989151]
[1758108203757,6.34057964,234.9,234.83,1.31989151]
[1758108204088,0.68,234.89,234.84,1.31989151]
[1758108204259,0.68,234.88,234.84,1.31989151]
[1758108204461,0.68,234.87,234.83,1.31989151]
[1758108204661,0.68,234.86,234.83,1.31989151]
[1758108204896,0.68,234.85,234.83,1.31989151]
[1758108205064,0.68,234.84,234.83,1.31989151]
[1758108205378,0.68,234.84,234.81,13.59559401]
[1758108205578,6.34057964,234.9,234.83,1.31989151]
[1758108205764,7.66047115,234.9,234.84,1.31989151]
[1758108205969,1.31989151,234.89,234.83,1.31989151]
[1758108206170,0.68,234.88,234.83,1.31989151]
[1758108206475,0.68,234.87,234.81,13.59559401]
[1758108206683,0.68,234.86,234.83,1.31989151]
[1758108206881,6.34057964,234.9,234.85,1.31989151]
[1758108207478,6.34057964,234.9,234.84,1.31989151]
[1758108207759,0.68,234.89,234.84,1.31989151]
[1758108207965,0.68,234.88,234.84,1.31989151]
[1758108208166,0.68,234.87,234.84,1.31989151]
[1758108208369,0.68,234.86,234.84,1.31989151]
[1758108208587,0.68,234.85,234.81,13.59559401]
[1758108208762,0.68,234.84,234.8,33.66047115]
[1758108209082,0.68,234.83,234.81,1.31989151]
[1758108209464,0.68,234.82,234.81,1.31989151]
[1758108209665,0.68,234.82,234.81,27.31989151]
[1758108210874,0.68,234.9,234.83,0.28432314]
[1758108211073,0.68,234.9,234.88,1.31989151]
[1758108211279,30.68,234.89,234.86,1.31989151]
[1758108211589,0.68,234.88,234.85,1.31989151]
[1758108211891,0.68,234.87,234.84,1.31989151]
[1758108212058,0.68,234.86,234.84,1.31989151]
[1758108212262,0.68,234.85,234.82,13.59559401]
[1758108212458,0.68,234.85,234.84,1.31989151]
[1758108213464,0.03,234.86,234.84,1.31989151]
[1758108213793,0.71,234.86,234.85,1.31989151]
[1758108214481,0.03,234.86,234.85,15.61548552]
[1758108214893,0.03,234.86,234.85,28.40293677]
[1758108218880,0.03,234.86,234.85,27.70293677]
[1758108219081,0.03,234.86,234.85,14.91548552]
[1758108219387,0.03,234.86,234.85,16.62047901]
[1758108220107,0.03,234.86,234.85,15.3005875]
[1758108220412,0.03,234.86,234.85,16.62047901]
[1758108221017,0.03,234.86,234.85,15.3005875]
[1758108221217,0.71,234.86,234.85,1.70499349]
[1758108221696,0.71,234.86,234.84,13.59559401]
[1758108221886,0.71,234.86,234.84,1.31989151]
[1758108222895,0.68,234.85,234.84,13.59559401]
[1758108223111,0.03,234.86,234.84,13.59559401]
[1758108223408,0.03,234.86,234.81,26.7]
[1758108223409,0.68,234.85,234.82,15.30080556]
[1758108223625,0.03,234.86,234.84,13.59559401]
[1758108223909,0.71,234.86,234.82,13.59559401]
[1758108224114,0.71,234.86,234.84,13.59559401]
[1758108224500,0.71,234.86,234.83,14.91548552]
[1758108225005,0.68,234.85,234.82,13.59559401]
[1758108225213,0.68,234.85,234.83,1.31989151]
[1758108226310,0.68,234.85,234.82,14.91548552]
[1758108226803,0.03,234.86,234.82,15.61548552]
[1758108227017,0.71,234.86,234.82,14.91548552]
[1758108227387,0.71,234.86,234.82,15.61548552]
[1758108227799,0.03,234.86,234.82,15.61548552]
[1758108228011,1.34989151,234.86,234.82,14.29559401]
[1758108228409,1.34989151,234.86,234.82,15.30080556]
[1758108228603,1.34989151,234.86,234.83,0.7]
[1758108229317,1.34989151,234.86,234.82,15.30080556]
[1758108229706,1.34989151,234.86,234.83,0.7]
[1758108229887,2.08871056,234.86,234.83,0.7]
[1758108230399,2.08871056,234.86,234.82,15.30080556]
[1758108230615,2.08871056,234.86,234.83,0.7]
[1758108231303,2.74871056,234.86,234.82,15.30080556]
[1758108231505,0.03,234.86,234.82,14.29559401]
[1758108231703,2.08871056,234.86,234.82,13.59559401]
[1758108231913,2.08871056,234.86,234.82,14.29559401]
[1758108232212,2.08871056,234.86,234.83,0.7]
[1758108232887,2.71871056,234.85,234.82,13.59559401]
[1758108233089,0.03,234.86,234.82,13.59559401]
[1758108233310,0.03,234.86,234.79,0.98432314]
[1758108233311,2.05871056,234.83,234.8,13.59559401]
[1758108233517,2.05871056,234.82,234.8,14.29559401]
[1758108233793,2.71871056,234.81,234.78,2.71871056]
[1758108233995,2.05871056,234.79,234.78,2.71871056]
[1758108234221,2.71871056,234.79,234.78,2.71871056]
[1758108234527,2.71871056,234.79,234.76,0.06]
[1758108234823,2.05871056,234.77,234.76,0.06]
[1758108235808,2.71871056,234.78,234.76,0.06]
[1758108236205,2.05871056,234.79,234.76,0.06]
[1758108236394,2.71871056,234.79,234.76,0.06]
[1758108237097,2.74871056,234.78,234.76,0.06]
[1758108237317,0.69,234.78,234.76,0.06]
[1758108237512,2.74871056,234.78,234.76,0.06]
[1758108238234,0.69,234.78,234.76,0.06]
[1758108238399,2.74871056,234.78,234.76,0.06]
[1758108239030,0.69,234.78,234.76,0.06]
[1758108239208,2.74871056,234.78,234.76,0.06]
[1758108239609,2.74871056,234.77,234.76,0.06]
[1758108241212,2.89087213,234.77,234.76,0.06]
[1758108242022,3.0330337,234.77,234.76,0.06]
[1758108244314,3.31735684,234.77,234.76,0.06]
[1758108244514,16.11790299,234.77,234.76,0.06]
[1758108245107,26.0,234.74,234.73,0.06]
[1758108245327,2.3430337,234.74,234.73,0.06]
[1758108245535,3.0330337,234.74,234.73,0.06]
[1758108247949,3.31735684,234.74,234.73,0.06]
[1758108249032,0.28432314,234.73,234.69,0.06]
[1758108249240,2.05871056,234.7,234.69,0.06]
[1758108250655,2.05871056,234.71,234.69,0.06]
[1758108251153,2.05871056,234.71,234.69,0.78]
[1758108251355,8.13601151,234.73,234.7,0.72]
[1758108251651,8.13601151,234.73,234.71,0.72]
[1758108251826,8.13601151,234.73,234.7,0.06]
[1758108252225,10.19472207,234.73,234.7,0.06]
[1758108253441,8.13601151,234.73,234.7,0.06]
[1758108253647,8.13601151,234.73,234.7,0.78]
[1758108253856,10.88472207,234.73,234.7,0.06]
[1758108257763,8.82601151,234.73,234.7,0.06]
[1758108257966,8.13601151,234.73,234.71,0.72]
[1758108260952,8.13601151,234.73,234.7,0.06]
[1758108261154,8.13601151,234.73,234.71,0.69]
[1758108261561,8.13601151,234.73,234.7,0.06]
[1758108261760,8.13601151,234.73,234.7,0.75]
[1758108262177,2.72871056,234.72,234.7,0.06]
[1758108262360,2.05871056,234.71,234.7,0.06]
[1758108262558,2.72871056,234.71,234.7,0.06]
[1758108262753,2.05871056,234.71,234.7,0.06]
[1758108267770,8.80601151,234.73,234.7,0.06]
[1758108267971,2.05871056,234.71,234.7,0.06]
[1758108269287,8.13601151,234.73,234.7,0.06]
[1758108269472,2.05871056,234.71,234.7,0.75]
[1758108269974,8.13601151,234.73,234.7,0.75]
[1758108270290,2.05871056,234.72,234.7,0.75]
[1758108270580,2.72871056,234.72,234.7,0.06]
[1758108270885,2.05871056,234.71,234.7,0.06]
[1758108271583,10.22472207,234.73,234.7,0.75]
[1758108272987,8.16601151,234.73,234.71,0.69]
[1758108276189,8.16601151,234.73,234.7,0.06]
[1758108276492,8.16601151,234.73,234.71,0.69]
[1758108276665,8.16601151,234.73,234.7,0.06]
[1758108276989,8.16601151,234.73,234.71,0.69]
[1758108279693,0.03,234.73,234.72,15.65430457]
[1758108279872,0.03,234.73,234.72,16.34430457]
[1758108283769,0.03,234.73,234.72,16.62862771]
[1758108287573,0.03,234.73,234.72,14.56991715]
[1758108288174,0.03,234.73,234.72,16.77078928]
[1758108290300,0.03,234.73,234.72,14.62991715]
[1758108290599,0.03,234.73,234.72,16.83078928]
[1758108291783,0.03,234.73,234.72,16.09018641]
[1758108293277,0.03,234.73,234.72,15.94802484]
[1758108294084,0.03,234.73,234.72,26.34432314]
[1758108294501,0.03,234.73,234.72,26.06]
[1758108294800,0.03,234.73,234.72,39.65559401]
[1758108296105,0.03,234.73,234.72,40.9737017]
[1758108297006,0.03,234.73,234.72,41.6537017]
[1758108298714,0.03,234.73,234.72,41.93802484]
[1758108300421,2.05810769,234.73,234.72,0.06]
[1758108306211,2.20026926,234.73,234.72,0.06]
[1758108308627,2.34243083,234.73,234.72,0.06]
[1758108310240,0.28432314,234.72,234.7,0.06]
[1758108310417,26.28432314,234.7,234.64,0.06]
[1758108310739,1.31810769,234.65,234.64,0.06]
[1758108311335,2.17026926,234.65,234.64,0.06]
[1758108313327,2.31243083,234.65,234.64,0.06]
[1758108320143,157.7,234.71,234.64,0.06]
[1758108320348,1.31810769,234.65,234.64,0.06]
[1758108321728,0.86216157,234.68,234.64,0.06]
[1758108321729,0.14216157,234.68,234.64,0.06]
[1758108321934,1.31810769,234.67,234.65,0.72]
[1758108322341,1.46026926,234.68,234.65,0.72]
[1758108323048,27.46026926,234.68,234.64,0.06]
[1758108323256,36.15307746,234.68,234.66,0.72]
[1758108323438,36.01091589,234.68,234.64,0.06]
[1758108323643,36.01091589,234.68,234.65,0.72]
[1758108323845,36.01091589,234.68,234.66,0.72]
[1758108324043,8.6928082,234.68,234.67,0.72]
[1758108324958,1.31810769,234.7,234.67,0.72]
[1758108325754,1.31810769,234.68,234.64,0.78]
[1758108326359,0.03,234.67,234.64,0.78]
[1758108327841,0.03,234.67,234.65,0.72]
[1758108328735,1.34810769,234.67,234.64,0.06]
[1758108328944,1.34810769,234.67,234.64,0.78]
[1758108329331,1.34810769,234.67,234.64,0.06]
[1758108329549,1.34810769,234.67,234.65,0.72]
[1758108331343,1.34810769,234.67,234.64,0.06]
[1758108331756,1.34810769,234.67,234.64,0.78]
[1758108332260,1.31810769,234.65,234.64,0.06]
[1758108334335,1.31810769,234.66,234.64,0.06]
[1758108334535,1.31810769,234.66,234.64,0.78]
[1758108335460,1.31810769,234.66,234.64,0.06]
[1758108335858,1.31810769,234.65,234.64,0.06]
[1758108336972,2.03810769,234.65,234.64,0.06]
[1758108338651,1.31810769,234.65,234.64,0.06]
[1758108339677,2.03810769,234.65,234.64,0.06]
[1758108340052,2.18026926,234.65,234.64,0.06]
[1758108340266,2.32243083,234.65,234.64,0.06]
[1758108344284,7.59486159,234.65,234.64,0.06]
[1758108346375,2.32243083,234.65,234.64,0.06]
[1758108347485,33.59486159,234.65,234.64,0.06]
[1758108349277,27.60243083,234.65,234.64,0.06]
[1758108349573,28.32243083,234.65,234.64,0.06]
[1758108353785,29.06780907,234.65,234.64,0.06]
[1758108355301,31.131295,234.65,234.64,0.06]
[1758108355800,28.34780907,234.65,234.64,0.06]
[1758108358977,29.01780907,234.65,234.64,0.06]
[1758108360602,3.30213221,234.65,234.64,0.06]
[1758108362497,16.89772622,234.65,234.64,0.06]
[1758108362706,20.02775172,234.65,234.64,0.06]
[1758108362905,21.73551136,234.65,234.64,0.06]
[1758108367812,21.73569592,234.65,234.64,0.06]
[1758108368587,19.67220999,234.65,234.64,0.06]
[1758108369511,21.73569592,234.65,234.64,0.06]
[1758108372010,21.73567946,234.65,234.64,0.06]
[1758108373519,17.93548586,234.65,234.64,0.06]
[1758108373808,2.34780907,234.65,234.64,0.76]
[1758108374018,2.48997064,234.65,234.64,0.76]
[1758108374308,2.63213221,234.65,234.64,0.76]
[1758108375321,2.63213221,234.65,234.64,0.06]
[1758108377926,2.63213221,234.65,234.64,0.76]
[1758108378310,2.63213221,234.65,234.64,0.06]
[1758108385435,1.73761382,234.66,234.64,0.78]
[1758108385646,2.34780907,234.65,234.64,0.78]
[1758108385930,2.63213221,234.65,234.64,0.06]
[1758108386114,3.34213221,234.65,234.64,0.06]
[1758108386311,2.63213221,234.65,234.64,0.06]
[1758108389839,3.34213221,234.65,234.64,0.06]
[1758108390031,20.06777201,234.65,234.64,0.06]
[1758108390844,21.77553164,234.65,234.64,0.06]
[1758108400051,21.06553164,234.65,234.64,0.06]
[1758108402340,21.77553164,234.65,234.64,0.06]
[1758108403650,34.57553164,234.65,234.64,0.06]
[1758108403851,21.77553164,234.65,234.64,0.06]
[1758108405946,21.06553164,234.65,234.64,0.06]
[1758108408540,21.77553164,234.65,234.64,0.06]
[1758108408731,21.06553164,234.65,234.64,0.06]
[1758108412152,21.78553164,234.65,234.64,0.06]
[1758108413758,23.54319123,234.65,234.64,0.06]
[1758108414556,24.26319123,234.65,234.64,0.06]
[1758108418364,18.25948607,234.65,234.64,0.72]
[1758108418570,18.25957194,234.65,234.64,0.72]
[1758108419761,18.25957163,234.65,234.64,0.72]
[1758108421572,3.34305133,234.65,234.64,0.72]
[1758108421746,4.66397762,234.65,234.64,0.72]
[1758108424789,2.91656662,234.65,234.64,0.72]
[1758108425146,1.20880699,234.65,234.64,0.72]
[1758108425347,0.14216157,234.65,234.64,0.72]
[1758108427165,1.23851501,234.66,234.64,0.72]
[1758108427669,0.17216157,234.66,234.64,0.72]
[1758108427970,1.23850698,234.66,234.64,0.72]
[1758108428358,1.09634541,234.66,234.64,0.72]
[1758108428571,0.03,234.66,234.64,2.04092629]
[1758108428764,0.03,234.66,234.65,0.66]
[1758108434676,1.35092629,234.66,234.64,0.06]
[1758108434853,1.32092629,234.65,234.64,0.72]
[1758108435264,1.35092629,234.66,234.64,0.72]
[1758108435471,1.35092629,234.66,234.64,0.06]
[1758108435677,1.49308786,234.66,234.65,0.66]
[1758108437370,1.35092629,234.66,234.64,0.06]
[1758108437570,1.32092629,234.65,234.64,0.06]
[1758108437877,1.32092629,234.65,234.64,0.72]
[1758108441383,1.32092629,234.65,234.64,0.06]
[1758108441573,2.26524943,234.65,234.64,0.06]
[1758108441876,1.32092629,234.62,234.61,0.06]
[1758108442258,1.32092629,234.62,234.61,0.72]
[1758108442865,1.32092629,234.62,234.61,0.06]
[1758108443069,1.32092629,234.62,234.61,0.72]
[1758108443473,1.70746804,234.63,234.61,0.72]
[1758108443657,1.32092629,234.63,234.61,0.72]
[1758108443857,0.03,234.66,234.61,0.72]
[1758108444058,1.32092629,234.63,234.61,0.72]
[1758108444659,11.1741429,234.64,234.61,0.72]
[1758108444883,9.46674775,234.64,234.61,0.72]
[1758108445679,10.78767404,234.64,234.62,0.66]
[1758108445859,1.32092629,234.63,234.62,0.66]
[1758108446059,1.32092629,234.63,234.61,0.06]
[1758108446786,1.32092629,234.63,234.62,0.66]
[1758108447160,10.78767404,234.64,234.62,0.66]
[1758108447364,10.78767404,234.64,234.63,0.66]
[1758108452695,9.46674775,234.64,234.63,0.66]
[1758108453189,10.78767404,234.64,234.63,0.66]
[1758108453389,9.46674775,234.64,234.63,0.66]
[1758108453591,10.78767404,234.64,234.63,0.66]
[1758108455708,1.73717655,234.66,234.63,0.66]
[1758108455906,1.32092629,234.64,234.62,0.06]
[1758108456105,1.32092629,234.63,234.62,0.06]
[1758108456616,28.12308786,234.63,234.62,0.06]
[1758108456918,2.12308786,234.63,234.62,0.06]
[1758108457522,3.83055589,234.63,234.62,0.06]
[1758108457696,2.36746803,234.63,234.62,0.06]
[1758108457897,3.83055589,234.63,234.62,0.06]
[1758108458309,4.89705861,234.63,234.62,0.06]
[1758108458501,5.03922018,234.63,234.62,0.06]
[1758108459693,31.03922018,234.63,234.62,0.06]
[1758108460502,31.32354332,234.63,234.62,0.06]
[1758108460704,5.32354332,234.63,234.62,0.06]
[1758108463200,31.32366828,234.63,234.62,0.06]
[1758108463608,4.00274199,234.63,234.62,0.06]
[1758108463809,5.32366828,234.63,234.62,0.06]
[1758108467609,4.00274199,234.63,234.62,0.06]
[1758108467812,4.66366828,234.63,234.62,0.06]
[1758108468991,30.66366828,234.63,234.62,0.06]
[1758108472108,31.36366828,234.63,234.62,0.06]
[1758108475725,63.92366828,234.63,234.62,0.06]
[1758108476023,64.66692911,234.63,234.62,0.06]
[1758108476821,64.66692119,234.63,234.62,0.06]
[1758108479499,64.66695219,234.63,234.62,0.06]
[1758108480728,63.96695219,234.63,234.62,0.06]
[1758108481022,29.05844193,234.63,234.62,0.72]